bitfinex/quotes_BTCUSD_20250916
["timestamp","ask_amount","ask_price","bid_price","bid_amount"]
[1757992636851,0.49719686,115380.0,115370.0,0.34711529]
[1757992638167,0.49917686,115380.0,115370.0,0.34711529]
[1757992641236,0.49917686,115380.0,115370.0,0.14434]
[1757992641464,0.52246686,115380.0,115370.0,0.31769529]
[1757992641678,0.54853247,115380.0,115370.0,0.31769529]
[1757992641893,0.54853247,115380.0,115370.0,0.14434]
[1757992643433,0.52524247,115380.0,115370.0,0.34506529]
[1757992644297,0.52524247,115380.0,115370.0,0.34711529]
[1757992648086,0.52326247,115380.0,115370.0,0.34711529]
[1757992648314,0.03464019,115380.0,115370.0,0.34711529]
[1757992648530,0.34992221,115380.0,115370.0,0.34711529]
[1757992650569,0.52326247,115380.0,115370.0,0.34711529]
[1757992654596,0.20798045,115380.0,115370.0,0.34711529]
[1757992654774,0.52326247,115380.0,115370.0,0.34711529]
[1757992655419,0.20798045,115380.0,115370.0,0.34711529]
[1757992655620,0.52326247,115380.0,115370.0,0.34711529]
[1757992662113,0.20798045,115380.0,115370.0,0.34711529]
[1757992662322,0.52326247,115380.0,115370.0,0.34711529]
[1757992667247,0.03464019,115380.0,115370.0,0.77504741]
[1757992667485,0.02611277,115380.0,115370.0,0.77504741]
[1757992667679,4.716e-05,115380.0,115370.0,0.77504741]
[1757992668531,4.716e-05,115380.0,115370.0,0.77704741]
[1757992669155,4.716e-05,115380.0,115370.0,0.77904741]
[1757992669597,4.716e-05,115380.0,115370.0,0.80510624]
[1757992674666,4.716e-05,115380.0,115370.0,0.66086624]
[1757992674868,4.716e-05,115380.0,115370.0,0.80510624]
[1757992677640,4.716e-05,115380.0,115370.0,0.80506624]
[1757992678133,4.716e-05,115380.0,115370.0,0.66086624]
[1757992678361,4.716e-05,115380.0,115370.0,1.07276624]
[1757992680530,4.716e-05,115380.0,115370.0,0.92856624]
[1757992680736,4.716e-05,115380.0,115370.0,1.07276624]
[1757992681210,4.716e-05,115380.0,115370.0,0.92690955]
[1757992681396,4.716e-05,115380.0,115370.0,0.75582753]
[1757992681770,4.716e-05,115380.0,115370.0,0.61162753]
[1757992681970,4.716e-05,115380.0,115370.0,0.7297687]
[1757992683010,4.716e-05,115380.0,115370.0,0.7298687]
[1757992683967,4.716e-05,115380.0,115370.0,0.7299087]
[1757992684409,4.716e-05,115380.0,115370.0,0.4622087]
[1757992685021,4.716e-05,115380.0,115370.0,0.3179687]
[1757992685460,4.716e-05,115380.0,115370.0,0.4621687]
[1757992686406,4.716e-05,115380.0,115370.0,0.5288087]
[1757992693739,4.716e-05,115380.0,115370.0,0.8833655]
[1757992707150,4.716e-05,115380.0,115370.0,0.5288087]
[1757992707379,4.716e-05,115380.0,115370.0,0.8833655]
[1757992721678,0.00202716,115380.0,115370.0,0.5287687]
[1757992721907,0.35658396,115380.0,115370.0,0.5287687]
[1757992722580,0.00202716,115380.0,115370.0,0.38108539]
[1757992722788,0.35658396,115380.0,115370.0,0.35674539]
[1757992723027,0.38122396,115380.0,115370.0,0.50090539]
[1757992723431,0.35658396,115380.0,115370.0,0.52363539]
[1757992723711,0.35658396,115380.0,115370.0,0.52572539]
[1757992723929,0.35658396,115380.0,115370.0,0.52877539]
[1757992726657,4.716e-05,115380.0,115370.0,0.52877539]
[1757992726855,0.35460396,115380.0,115370.0,0.52877539]
[1757992727562,4.716e-05,115380.0,115370.0,0.52877539]
[1757992727765,0.35460396,115380.0,115370.0,0.52877539]
[1757992730001,4.716e-05,115380.0,115370.0,0.52877539]
[1757992730226,0.35460396,115380.0,115370.0,0.52877539]
[1757992733253,4.716e-05,115380.0,115370.0,0.52877539]
[1757992733476,0.35460396,115380.0,115370.0,0.52877539]
[1757992741444,4.716e-05,115380.0,115370.0,0.52877539]
[1757992741644,0.35460396,115380.0,115370.0,0.52877539]
[1757992744343,4.716e-05,115380.0,115370.0,0.52877539]
[1757992744778,4.716e-05,115380.0,115370.0,0.88333219]
[1757992746207,4.716e-05,115380.0,115370.0,0.73917219]
[1757992746557,4.716e-05,115380.0,115370.0,0.52877539]
[1757992749797,4.716e-05,115380.0,115370.0,0.79647539]
[1757992752240,4.716e-05,115380.0,115370.0,0.65231539]
[1757992752454,4.716e-05,115380.0,115370.0,0.79647539]
[1757992753939,4.716e-05,115380.0,115370.0,0.65231539]
[1757992754122,4.716e-05,115380.0,115370.0,0.79647539]
[1757992754737,0.35460396,115380.0,115370.0,0.79647539]
[1757992754948,0.35658396,115380.0,115370.0,0.65231539]
[1757992755153,0.35658396,115380.0,115370.0,0.79647539]
[1757992755359,0.35460396,115380.0,115370.0,0.79647539]
[1757992755908,4.716e-05,115380.0,115370.0,0.79647539]
[1757992763454,4.716e-05,115380.0,115370.0,0.79651539]
[1757992767305,4.716e-05,115380.0,115370.0,0.79647539]
[1757992769034,0.00202716,115380.0,115370.0,0.79647539]
[1757992769476,4.716e-05,115380.0,115370.0,0.79647539]
[1757992783388,0.51666182,115380.0,115370.0,0.09162352]
[1757992783811,0.36938561,115380.0,115370.0,0.23568352]
[1757992784036,0.54272587,115380.0,115370.0,0.23568352]
[1757992784472,0.54282587,115380.0,115370.0,0.23368352]
[1757992784681,0.54282587,115380.0,115370.0,0.23168352]
[1757992784885,0.54282587,115380.0,115370.0,0.23268352]
[1757992785130,0.54282587,115380.0,115370.0,0.23368352]
[1757992789989,0.54282587,115380.0,115370.0,0.40703881]
[1757992790389,0.54282587,115380.0,115370.0,0.23368352]
[1757992791268,0.54004587,115380.0,115370.0,0.40703881]
[1757992792307,0.54282587,115380.0,115370.0,0.40703881]
[1757992793493,0.54004587,115380.0,115370.0,0.40703881]
[1757992799363,0.54004587,115380.0,115370.0,0.23368352]
[1757992800258,3.14944093,115380.0,115370.0,1e-08]
[1757992800493,0.51337031,115360.0,115350.0,0.0001]
[1757992800720,0.51340038,115340.0,115320.0,0.1688]
[1757992800943,0.3151744,115330.0,115320.0,0.43292397]
[1757992801156,0.3151744,115330.0,115320.0,0.43502397]
[1757992801372,0.34124849,115330.0,115320.0,0.46015055]
[1757992801790,0.5146639,115330.0,115320.0,0.46015055]
[1757992802011,0.52522661,115330.0,115320.0,0.46019765]
[1757992802236,0.52532661,115330.0,115320.0,0.46119765]
[1757992802708,0.52532661,115330.0,115320.0,0.2877672]
[1757992803790,0.52532661,115330.0,115320.0,0.2824972]
[1757992804012,0.54864661,115330.0,115320.0,0.2587772]
[1757992805512,0.52532661,115330.0,115320.0,0.2824972]
[1757992807489,0.55142661,115330.0,115320.0,0.23365062]
[1757992807703,0.86660101,115330.0,115320.0,0.1461271]
[1757992808196,0.86660101,115330.0,115320.0,0.0010471]
[1757992808425,1.35168101,115330.0,115320.0,4.71e-05]
[1757992812803,1.20660101,115330.0,115320.0,4.71e-05]
[1757992813071,1.35164101,115330.0,115320.0,4.71e-05]
[1757992813272,1.36778712,115330.0,115320.0,4.71e-05]
[1757992814615,1.22274712,115330.0,115320.0,4.71e-05]
[1757992814811,0.58961832,115330.0,115320.0,4.71e-05]
[1757992815100,1.02449272,115330.0,115320.0,0.20246755]
[1757992815303,0.39090291,115330.0,115320.0,0.28999107]
[1757992815512,0.70607731,115330.0,115320.0,0.28999107]
[1757992815908,0.74588266,115330.0,115320.0,0.28999107]
[1757992816273,0.91929807,115330.0,115320.0,0.28999107]
[1757992816907,0.91929807,115330.0,115320.0,0.29099107]
[1757992818509,1.27625782,115330.0,115320.0,0.08857062]
[1757992818717,1.29957782,115330.0,115320.0,0.26200107]
[1757992818940,1.27625782,115330.0,115320.0,0.29099107]
[1757992819367,1.27625782,115330.0,115320.0,0.11756062]
[1757992819592,1.27625796,115330.0,115320.0,0.29099107]
[1757992819805,1.27427796,115330.0,115320.0,0.29099107]
[1757992821961,1.27625796,115330.0,115320.0,0.29099107]
[1757992822138,1.27625796,115330.0,115320.0,0.11756062]
[1757992822341,1.27625796,115330.0,115320.0,0.29099107]
[1757992823010,1.27625796,115330.0,115320.0,0.11756062]
[1757992823237,1.27625796,115330.0,115320.0,0.11229062]
[1757992823449,1.27625796,115330.0,115320.0,0.28572107]
[1757992823624,0.92127821,115330.0,115320.0,0.28889107]
[1757992823826,1.27625796,115330.0,115320.0,0.29099107]
[1757992824441,0.7458828,115330.0,115320.0,0.29099107]
[1757992824865,0.92127821,115330.0,115320.0,0.11756062]
[1757992825273,0.92127821,115330.0,115320.0,0.29099107]
[1757992825482,0.92127821,115330.0,115320.0,0.11756062]
[1757992825730,1.29957796,115330.0,115320.0,0.08857062]
[1757992825916,1.29957796,115330.0,115320.0,0.26200107]
[1757992826135,1.27625796,115330.0,115320.0,0.28889107]
[1757992826346,1.27625796,115330.0,115320.0,0.29099107]
[1757992827246,0.92127821,115330.0,115320.0,0.29099107]
[1757992827454,0.92084683,115330.0,115320.0,0.29099107]
[1757992827649,0.90470058,115330.0,115320.0,0.29099107]
[1757992827872,0.92089445,115330.0,115320.0,0.29099107]
[1757992829186,0.92698233,115330.0,115320.0,0.29099107]
[1757992829412,0.75158692,115330.0,115320.0,0.29099107]
[1757992830092,0.92500233,115330.0,115320.0,0.29099107]
[1757992831083,0.9269826,115330.0,115320.0,0.29099107]
[1757992831695,0.92698286,115330.0,115320.0,0.29099107]
[1757992832265,0.92089445,115330.0,115320.0,0.29099107]
[1757992832482,0.91891445,115330.0,115320.0,0.29099107]
[1757992833376,0.92089445,115330.0,115320.0,0.43579107]
[1757992833763,0.92089445,115330.0,115320.0,0.29099107]
[1757992834060,0.92089445,115330.0,115320.0,0.43579107]
[1757992835313,0.92089445,115330.0,115320.0,0.11756062]
[1757992835479,0.92089445,115330.0,115320.0,0.43579107]
[1757992835626,0.92089445,115330.0,115320.0,0.26232062]
[1757992835827,0.92089445,115330.0,115320.0,0.25705062]
[1757992836079,0.94508445,115330.0,115320.0,0.25705062]
[1757992836282,0.94508445,115330.0,115320.0,0.23333062]
[1757992837402,0.94508445,115330.0,115320.0,0.40676107]
[1757992837580,0.92089445,115330.0,115320.0,0.40676107]
[1757992837825,0.5659147,115330.0,115320.0,0.43628107]
[1757992838006,0.92089445,115330.0,115320.0,0.43628107]
[1757992838703,0.89525174,115330.0,115320.0,0.43628107]
[1757992840698,0.89525174,115330.0,115320.0,0.26285062]
[1757992841216,0.89525174,115330.0,115320.0,0.23333062]
[1757992841430,0.91944174,115330.0,115320.0,0.23333062]
[1757992841649,0.91944174,115330.0,115320.0,0.40676107]
[1757992841875,0.91944174,115330.0,115320.0,0.43100107]
[1757992842095,0.89525174,115330.0,115320.0,0.43100107]
[1757992842994,0.54027199,115330.0,115320.0,0.43315107]
[1757992843219,0.89525174,115330.0,115320.0,0.43628107]
[1757992846336,0.89530961,115330.0,115320.0,0.43628107]
[1757992848998,0.89332961,115330.0,115320.0,0.43628107]
[1757992850238,0.87707787,115330.0,115320.0,0.43628107]
[1757992851270,0.87905787,115330.0,115320.0,0.43628107]
[1757992851945,0.52209812,115330.0,115320.0,0.43628107]
[1757992852151,0.34868271,115330.0,115320.0,0.43628107]
[1757992852359,0.70366246,115330.0,115320.0,0.43628107]
[1757992853390,0.70366246,115330.0,115320.0,0.29152107]
[1757992853600,0.70366246,115330.0,115320.0,0.43608107]
[1757992858204,0.70365776,115330.0,115320.0,0.43608107]
[1757992859760,0.34868271,115330.0,115320.0,0.43608107]
[1757992860008,0.70365776,115330.0,115320.0,0.43608107]
[1757992861339,0.87905317,115330.0,115320.0,0.43600107]
[1757992862381,0.70563776,115330.0,115320.0,0.43600107]
[1757992863940,0.87905317,115330.0,115320.0,0.43600107]
[1757992864195,0.87905317,115330.0,115320.0,0.29152107]
[1757992864432,0.87905317,115330.0,115320.0,0.43600107]
[1757992864937,0.87905317,115330.0,115320.0,0.43072107]
[1757992865806,0.87905317,115330.0,115320.0,0.23301062]
[1757992866052,1.26004822,115330.0,115320.0,0.1454871]
[1757992866267,1.40448822,115330.0,115320.0,0.0010471]
[1757992866502,1.40448822,115330.0,115320.0,0.1454871]
[1757992866737,1.04951317,115330.0,115320.0,0.1454871]
[1757992866960,1.04951317,115330.0,115320.0,0.1444871]
[1757992867541,1.04673317,115330.0,115320.0,0.1444871]
[1757992870500,1.04673317,115330.0,115320.0,4.71e-05]
[1757992870700,1.04673317,115330.0,115320.0,0.1444471]
[1757992870876,1.04951317,115330.0,115320.0,0.1444471]
[1757992871448,1.04673317,115330.0,115320.0,0.1444471]
[1757992872193,1.04673317,115330.0,115320.0,4.71e-05]
[1757992875455,1.04673317,115330.0,115320.0,0.17347755]
[1757992875653,0.34868271,115330.0,115320.0,0.20240755]
[1757992875853,0.66422857,115330.0,115320.0,0.20240755]
[1757992876907,0.34868271,115330.0,115320.0,0.20240755]
[1757992877104,0.66422857,115330.0,115320.0,0.20240755]
[1757992880457,0.00868271,115330.0,115320.0,0.28993107]
[1757992880694,0.00868271,115330.0,115320.0,0.31505765]
[1757992880907,0.00868271,115330.0,115320.0,0.63060351]
[1757992881124,0.0001,115330.0,115320.0,0.63060351]
[1757992881562,0.0001,115330.0,115320.0,1.03060351]
[1757992881993,0.0001,115330.0,115320.0,0.71605765]
[1757992882208,0.0001,115330.0,115320.0,1.03160351]
[1757992882390,0.0001,115330.0,115320.0,1.03060351]
[1757992882799,0.0001,115330.0,115320.0,1.03360351]
[1757992883057,0.0001,115340.0,115330.0,0.17341541]
[1757992883272,0.0001,115340.0,115330.0,0.47201893]
[1757992883458,0.0001,115340.0,115330.0,0.50094893]
[1757992884803,0.0001,115340.0,115330.0,0.50194893]
[1757992885010,0.0001,115340.0,115330.0,0.50394893]
[1757992885922,0.00882071,115350.0,115340.0,0.19852696]
[1757992886239,0.00882071,115350.0,115340.0,0.31291048]
[1757992886450,0.00882071,115350.0,115340.0,0.31498048]
[1757992887099,0.32436657,115350.0,115340.0,0.31498048]
[1757992887742,0.32436657,115350.0,115340.0,0.45934048]
[1757992888178,0.32436657,115350.0,115340.0,0.46034048]
[1757992890835,0.00882071,115350.0,115340.0,0.46034048]
[1757992891067,0.32436657,115350.0,115340.0,0.46034048]
[1757992891282,0.32436657,115350.0,115340.0,0.52507915]
[1757992893782,0.00882071,115350.0,115340.0,0.52507915]
[1757992893922,0.32436657,115350.0,115340.0,0.52507915]
[1757992895323,0.00882071,115350.0,115340.0,0.52507915]
[1757992897103,0.00882071,115350.0,115340.0,0.38071915]
[1757992897348,0.32436657,115350.0,115340.0,0.52503915]
[1757992898450,0.32436657,115350.0,115340.0,0.38071915]
[1757992898722,0.32634657,115350.0,115340.0,0.52503915]
[1757992899418,0.35043585,115350.0,115340.0,0.52503915]
[1757992901333,0.35043585,115350.0,115340.0,0.38071915]
[1757992901549,0.35043585,115350.0,115340.0,0.52503915]
[1757992903829,0.35043585,115350.0,115340.0,0.38071915]
[1757992904028,0.35043585,115350.0,115340.0,0.52503915]
[1757992904567,0.35241585,115350.0,115340.0,0.52503915]
[1757992904911,0.35043585,115350.0,115340.0,0.52503915]
[1757992907512,0.35043585,115350.0,115340.0,0.38071915]
[1757992907716,0.35043585,115350.0,115340.0,0.52503915]
[1757992920102,0.03488999,115350.0,115340.0,0.52503915]
[1757992920317,0.35043585,115350.0,115340.0,0.52503915]
[1757992930293,0.03488999,115350.0,115340.0,0.52503915]
[1757992930501,0.03488999,115350.0,115340.0,0.84058501]
[1757992930923,0.00882071,115350.0,115340.0,0.84058501]
[1757992933117,0.02616666,115360.0,115350.0,0.17338534]
[1757992933354,0.0001,115360.0,115350.0,0.43031544]
[1757992933537,0.0001,115360.0,115350.0,0.45797544]
[1757992936273,0.0001,115360.0,115350.0,0.45997544]
[1757992936695,0.0001,115360.0,115350.0,0.85997544]
[1757992937135,0.00864281,115360.0,115350.0,0.85997544]
[1757992937352,0.00864281,115360.0,115350.0,0.86097544]
[1757992938005,0.36334997,115360.0,115350.0,0.86097544]
[1757992943586,0.00864281,115360.0,115350.0,0.86097544]
[1757992943945,0.0001,115360.0,115350.0,0.86097544]
[1757992944363,0.35480716,115360.0,115350.0,0.86097544]
[1757992945360,0.36338128,115360.0,115350.0,0.86097544]
[1757992955445,0.35480716,115360.0,115350.0,0.86097544]
[1757992956298,0.36333953,115360.0,115350.0,0.86097544]
[1757992956948,0.35480716,115360.0,115350.0,0.86097544]
[1757992957595,0.36356397,115360.0,115350.0,0.86097544]
[1757992959363,0.41486966,115360.0,115350.0,0.83327544]
[1757992959584,0.41486966,115360.0,115350.0,0.43327544]
[1757992960870,0.39160966,115360.0,115350.0,0.43327544]
[1757992961067,0.39160966,115360.0,115350.0,0.45631544]
[1757992961353,0.39160966,115360.0,115350.0,0.46156544]
[1757992963592,0.39160966,115360.0,115350.0,0.86156544]
[1757992965165,0.38962966,115360.0,115350.0,0.86156544]
[1757992970132,0.38962966,115360.0,115350.0,0.46156544]
[1757992972054,0.39160966,115360.0,115350.0,0.46156544]
[1757992972893,0.38962966,115360.0,115350.0,0.46156544]
[1757992976404,0.39160966,115360.0,115350.0,0.46156544]
[1757992977181,0.38962966,115360.0,115350.0,0.46156544]
[1757992977799,0.39160966,115360.0,115350.0,0.45631544]
[1757992978148,0.39160966,115360.0,115350.0,0.45932544]
[1757992978351,0.38962966,115360.0,115350.0,0.46128544]
[1757992979381,0.39160966,115360.0,115350.0,0.46128544]
[1757992981409,0.38962966,115360.0,115350.0,0.46128544]
[1757992984886,0.38962966,115360.0,115350.0,0.86128544]
[1757992986650,0.38962966,115360.0,115350.0,0.92796544]
[1757992987302,0.38087285,115360.0,115350.0,0.92796544]
[1757992987507,0.38087285,115360.0,115350.0,0.52796544]
[1757992988182,0.38285285,115360.0,115350.0,0.38372544]
[1757992988402,0.40990285,115360.0,115350.0,0.35571544]
[1757992988630,0.40712285,115360.0,115350.0,0.49995544]
[1757992988823,0.38285285,115360.0,115350.0,0.49995544]
[1757992989050,0.38285285,115360.0,115350.0,0.52343544]
[1757992989253,0.38285285,115360.0,115350.0,0.52636544]
[1757992989484,0.38285285,115360.0,115350.0,0.52843544]
[1757992989910,0.38087285,115360.0,115350.0,0.52843544]
[1757992991413,0.38087285,115360.0,115350.0,0.46175544]
[1757992991819,0.38087285,115360.0,115350.0,0.86175544]
[1757992996973,0.38087285,115360.0,115350.0,0.71751544]
[1757992997191,0.38087285,115360.0,115350.0,0.86171544]
[1757992999760,0.02616569,115360.0,115350.0,0.86171544]
[1757993000022,0.34149407,115360.0,115350.0,0.86171544]
[1757993000989,0.34149407,115360.0,115350.0,0.46171544]
[1757993001852,0.02616569,115360.0,115350.0,0.46171544]
[1757993002067,0.34149407,115360.0,115350.0,0.46171544]
[1757993004901,0.02616569,115360.0,115350.0,0.46171544]
[1757993005109,0.02616569,115360.0,115350.0,0.77704382]
[1757993005316,0.0001,115360.0,115350.0,0.77704382]
[1757993006111,0.0001,115360.0,115350.0,0.46171544]
[1757993006526,0.0001,115360.0,115350.0,0.77704382]
[1757993006727,0.03506364,115370.0,115350.0,0.77704382]
[1757993006728,0.03506364,115370.0,115360.0,0.19849689]
[1757993006970,0.03506364,115370.0,115360.0,0.45663041]
[1757993007193,0.03506364,115370.0,115360.0,0.45870041]
[1757993007650,0.03704364,115370.0,115360.0,0.45870041]
[1757993007882,0.37668917,115370.0,115360.0,0.43022041]
[1757993008103,0.03709079,115370.0,115360.0,0.43329041]
[1757993008367,0.35241917,115370.0,115360.0,0.45970041]
[1757993008547,0.35241917,115370.0,115360.0,0.85970041]
[1757993016812,0.34351857,115370.0,115360.0,0.85970041]
[1757993018701,0.34347833,115370.0,115360.0,0.85970041]
[1757993021581,0.34149833,115370.0,115360.0,0.85970041]
[1757993021796,0.35001813,115370.0,115360.0,0.85970041]
[1757993042492,0.03472999,115370.0,115360.0,0.85970041]
[1757993042629,0.35001813,115370.0,115360.0,0.85970041]
[1757993042838,0.35199813,115370.0,115360.0,0.85970041]
[1757993044953,0.35001813,115370.0,115360.0,0.85970041]
[1757993049259,0.52535342,115370.0,115360.0,0.28702041]
[1757993049479,0.89211342,115370.0,115360.0,0.14512]
[1757993051394,0.17337031,115360.0,115350.0,0.06664]
[1757993051637,0.85739845,115360.0,115350.0,0.14416]
[1757993051855,0.85749845,115360.0,115350.0,0.14416]
[1757993052377,0.88356753,115360.0,115350.0,0.14416]
[1757993053051,0.88356753,115360.0,115350.0,0.14516]
[1757993054425,1.19885567,115360.0,115350.0,0.14516]
[1757993054875,0.88356753,115360.0,115350.0,0.14416]
[1757993055087,0.88078753,115360.0,115350.0,0.14416]
[1757993057223,0.88078753,115360.0,115350.0,0.16889]
[1757993057224,0.85680753,115360.0,115350.0,0.16889]
[1757993058286,0.88078753,115360.0,115350.0,0.14416]
[1757993061917,0.92034742,115360.0,115350.0,0.14416]
[1757993065285,0.89636742,115360.0,115350.0,0.16889]
[1757993067212,0.92034742,115360.0,115350.0,0.16889]
[1757993068718,0.56549939,115360.0,115350.0,0.16889]
[1757993069028,0.92034742,115360.0,115350.0,0.16889]
[1757993069387,0.92034742,115360.0,115350.0,0.14416]
[1757993076406,1.27519545,115360.0,115350.0,0.14416]
[1757993076627,1.27797545,115360.0,115350.0,0.14416]
[1757993077797,1.27519545,115360.0,115350.0,0.14416]
[1757993078461,0.92034742,115360.0,115350.0,0.14416]
[1757993080505,1.27519545,115360.0,115350.0,0.14416]
[1757993081051,0.92034742,115360.0,115350.0,0.14416]
[1757993087014,0.17338534,115350.0,115340.0,0.26766251]
[1757993087227,0.86823337,115350.0,115340.0,0.50135603]
[1757993087668,1.2230814,115350.0,115340.0,0.50135603]
[1757993087879,1.2231814,115350.0,115340.0,0.50135603]
[1757993088512,1.24925157,115350.0,115340.0,0.50135603]
[1757993088898,1.24925157,115350.0,115340.0,0.50235603]
[1757993092099,0.53955551,115350.0,115340.0,0.50235603]
[1757993092296,1.24925157,115350.0,115340.0,0.50235603]
[1757993092718,0.89440354,115350.0,115340.0,0.50235603]
[1757993093151,0.89440354,115350.0,115340.0,0.435912]
[1757993097066,0.89440354,115350.0,115340.0,0.50006486]
[1757993099660,0.89639354,115350.0,115340.0,0.50006486]
[1757993101975,0.89440354,115350.0,115340.0,0.50006486]
[1757993112768,0.36617017,115350.0,115340.0,0.50006486]
[1757993112981,0.36617017,115350.0,115340.0,0.85491289]
[1757993114273,0.36617017,115350.0,115340.0,1.25491289]
[1757993114883,0.36617017,115350.0,115340.0,0.85491289]
[1757993116773,0.36617017,115350.0,115340.0,0.50006486]
[1757993126301,0.36815017,115350.0,115340.0,0.35594486]
[1757993126558,0.36815017,115350.0,115340.0,0.50002486]
[1757993129528,0.54153551,115350.0,115340.0,0.50002676]
[1757993130153,0.36815017,115350.0,115340.0,0.50002676]
[1757993132739,0.68351188,115350.0,115340.0,0.50002676]
[1757993134964,0.36815017,115350.0,115340.0,0.50002676]
[1757993137364,0.36617017,115350.0,115340.0,0.50002676]
[1757993146301,0.02617017,115350.0,115340.0,0.84051505]
[1757993146483,0.02607017,115350.0,115340.0,0.84903508]
[1757993146682,0.0001,115360.0,115350.0,0.19851192]
[1757993146890,0.0261653,115360.0,115350.0,0.62961715]
[1757993147133,0.0261653,115360.0,115350.0,0.63157715]
[1757993147386,0.0261653,115360.0,115350.0,0.77565715]
[1757993149005,0.0261653,115360.0,115350.0,0.77765715]
[1757993149590,0.0261653,115360.0,115350.0,1.17765715]
[1757993150298,0.0261653,115360.0,115350.0,1.17865715]
[1757993153466,0.0260653,115360.0,115350.0,1.17865715]
[1757993153703,4.715e-05,115370.0,115360.0,0.19849689]
[1757993153966,0.02611018,115370.0,115360.0,0.84032212]
[1757993154198,0.02611018,115370.0,115360.0,0.84228212]
[1757993154420,4.715e-05,115370.0,115360.0,0.84228212]
[1757993154642,4.715e-05,115370.0,115360.0,1.24228212]
[1757993155036,4.715e-05,115370.0,115360.0,1.26834404]
[1757993155267,4.715e-05,115370.0,115360.0,1.26934404]
[1757993156654,4.715e-05,115370.0,115360.0,0.95398233]
[1757993156851,0.00014715,115370.0,115360.0,0.95398233]
[1757993159518,0.00014715,115370.0,115360.0,0.80994233]
[1757993159750,0.00014715,115370.0,115360.0,0.95398233]
[1757993164418,0.00014715,115370.0,115360.0,0.80994233]
[1757993164626,0.00014715,115370.0,115360.0,0.95398233]
[1757993165262,0.00014715,115370.0,115360.0,0.80994233]
[1757993165471,0.00014715,115370.0,115360.0,0.95398233]
[1757993169439,0.02620907,115370.0,115360.0,0.95398233]
[1757993170823,0.02620907,115370.0,115360.0,1.26934404]
[1757993171246,4.715e-05,115370.0,115360.0,1.26934404]
[1757993171998,4.715e-05,115370.0,115360.0,1.26834404]
[1757993172881,4.715e-05,115370.0,115360.0,1.27334404]
[1757993173354,4.715e-05,115370.0,115360.0,1.27634404]
[1757993173801,4.715e-05,115370.0,115360.0,1.27644404]
[1757993176591,4.715e-05,115370.0,115360.0,2.24950575]
[1757993176771,4.715e-05,115370.0,115360.0,1.93414404]
[1757993178425,4.715e-05,115370.0,115360.0,1.93410404]
[1757993181954,4.715e-05,115370.0,115360.0,1.97325999]
[1757993185113,4.715e-05,115370.0,115360.0,1.9820843]
[1757993185580,4.715e-05,115370.0,115360.0,1.97325999]
[1757993188194,4.715e-05,115370.0,115360.0,1.97321999]
[1757993190092,4.715e-05,115370.0,115360.0,1.42474233]
[1757993190294,4.715e-05,115370.0,115360.0,1.92321999]
[1757993196410,0.00202715,115370.0,115360.0,1.42474233]
[1757993196630,4.715e-05,115370.0,115360.0,1.92321999]
[1757993205956,4.715e-05,115370.0,115360.0,1.97321999]
[1757993206879,4.715e-05,115370.0,115360.0,1.97307999]
[1757993211869,4.715e-05,115370.0,115360.0,1.92307999]
[1757993212130,0.00202715,115370.0,115360.0,1.77911999]
[1757993212337,0.02475715,115370.0,115360.0,1.91802999]
[1757993212493,0.00202715,115370.0,115360.0,1.92014999]
[1757993212695,0.00202715,115370.0,115360.0,1.92323999]
[1757993213422,0.00202715,115370.0,115360.0,1.91823999]
[1757993213633,0.00202715,115370.0,115360.0,1.77727999]
[1757993213786,0.00202715,115370.0,115360.0,1.92123999]
[1757993214387,0.00202715,115370.0,115360.0,1.91823999]
[1757993214773,0.00202715,115370.0,115360.0,1.92123999]
[1757993216861,4.715e-05,115370.0,115360.0,1.92123999]
[1757993243853,4.715e-05,115370.0,115360.0,1.88181279]
[1757993249108,4.715e-05,115370.0,115360.0,1.73785279]
[1757993249330,4.715e-05,115370.0,115360.0,1.88177279]
[1757993250627,4.715e-05,115370.0,115360.0,1.56668233]
[1757993250803,4.715e-05,115370.0,115360.0,1.88177279]
[1757993252863,4.715e-05,115370.0,115360.0,1.73785279]
[1757993253117,4.715e-05,115370.0,115360.0,1.88177279]
[1757993253730,4.715e-05,115370.0,115360.0,1.73785279]
[1757993253985,4.715e-05,115370.0,115360.0,1.88177279]
[1757993254838,4.715e-05,115370.0,115360.0,1.73785279]
[1757993255051,0.00202715,115370.0,115360.0,1.87656279]
[1757993255308,0.00202715,115370.0,115360.0,1.88185279]
[1757993255523,4.715e-05,115370.0,115360.0,1.88185279]
[1757993266583,4.715e-05,115370.0,115360.0,1.56676233]
[1757993271183,4.715e-05,115370.0,115360.0,1.22676233]
[1757993271398,4.715e-05,115370.0,115360.0,1.42284233]
[1757993271600,4.715e-05,115370.0,115360.0,1.56676233]
[1757993271839,4.715e-05,115370.0,115360.0,1.42284233]
[1757993272042,4.715e-05,115370.0,115360.0,1.56676233]
[1757993272258,4.715e-05,115370.0,115360.0,1.88192794]
[1757993273431,4.715e-05,115370.0,115360.0,1.73800794]
[1757993273685,4.715e-05,115370.0,115360.0,1.88188794]
[1757993274656,4.715e-05,115370.0,115360.0,1.54188794]
[1757993274866,4.715e-05,115370.0,115360.0,1.88188794]
[1757993275288,4.715e-05,115370.0,115360.0,1.56672233]
[1757993275498,4.715e-05,115370.0,115360.0,1.73800794]
[1757993276147,4.715e-05,115370.0,115360.0,1.88196794]
[1757993301650,4.715e-05,115370.0,115360.0,1.56680233]
[1757993301858,4.715e-05,115370.0,115360.0,1.88196794]
[1757993303754,4.715e-05,115370.0,115360.0,1.92132041]
[1757993309544,4.715e-05,115370.0,115360.0,1.56680233]
[1757993309812,4.715e-05,115370.0,115360.0,1.92132041]
[1757993312006,4.715e-05,115370.0,115360.0,1.97132041]
[1757993314627,4.715e-05,115370.0,115360.0,1.82736041]
[1757993314920,4.715e-05,115370.0,115360.0,1.97124041]
[1757993316349,0.00202715,115370.0,115360.0,1.97124041]
[1757993316554,4.715e-05,115370.0,115360.0,1.97124041]
[1757993330604,4.715e-05,115370.0,115360.0,1.82736041]
[1757993330809,4.715e-05,115370.0,115360.0,1.61672233]
[1757993330964,4.715e-05,115370.0,115360.0,1.97124041]
[1757993333755,0.02591715,115370.0,115360.0,1.36743575]
[1757993333925,0.38043523,115370.0,115360.0,1.53644233]
[1757993334133,0.02591715,115370.0,115360.0,1.53644233]
[1757993334560,0.00202715,115370.0,115360.0,1.91464041]
[1757993335321,4.715e-05,115370.0,115360.0,1.56538233]
[1757993335536,4.715e-05,115370.0,115360.0,1.91990041]
[1757993346141,4.715e-05,115370.0,115360.0,1.56538233]
[1757993346355,4.715e-05,115370.0,115360.0,1.91990041]
[1757993346778,4.715e-05,115370.0,115360.0,1.42150233]
[1757993346985,4.715e-05,115370.0,115360.0,1.91990041]
[1757993349571,4.715e-05,115370.0,115360.0,1.56538233]
[1757993349747,4.715e-05,115370.0,115360.0,1.91990041]
[1757993363849,4.715e-05,115370.0,115360.0,1.8805224]
[1757993367673,4.715e-05,115370.0,115360.0,1.56538233]
[1757993367881,4.715e-05,115370.0,115360.0,1.8805224]
[1757993372472,4.715e-05,115370.0,115360.0,1.7366424]
[1757993372684,4.715e-05,115370.0,115360.0,1.8805224]
[1757993374982,4.715e-05,115370.0,115360.0,1.7366424]
[1757993375195,4.715e-05,115370.0,115360.0,1.56538233]
[1757993375408,4.715e-05,115370.0,115360.0,1.8805224]
[1757993377401,4.715e-05,115370.0,115360.0,1.7366424]
[1757993377628,4.715e-05,115370.0,115360.0,1.8805224]
[1757993410025,4.715e-05,115370.0,115360.0,2.24566247]